bitfinex/quotes_SOLUSD_20241111
["timestamp","ask_amount","ask_price","bid_price","bid_amount"]
[1731328164811,26.70778137,216.73,216.66,38.24648137]
[1731328165187,26.70778137,216.73,216.66,11.5387]
[1731328165492,26.70778137,216.71,216.63,6.2878]
[1731328165698,26.70778137,216.69,216.63,6.2878]
[1731328166002,0.2,216.74,216.62,38.24858137]
[1731328166003,26.70778137,216.68,216.62,11.5408]
[1731328166189,26.70778137,216.68,216.61,26.70778137]
[1731328166715,4.6153,216.67,216.61,30.82418137]
[1731328167083,26.70778137,216.68,216.61,30.82418137]
[1731328167488,31.32288137,216.68,216.61,30.82418137]
[1731328168108,26.70778137,216.67,216.59,31.32458137]
[1731328168310,26.70778137,216.67,216.6,26.70778137]
[1731328168603,4.6151,216.68,216.6,26.70778137]
[1731328168604,31.32288137,216.68,216.6,31.32448137]
[1731328168910,26.70778137,216.69,216.61,26.70778137]
[1731328169611,26.70778137,216.69,216.61,26.20778137]
[1731328170112,31.32258137,216.69,216.62,4.6163]
[1731328170305,26.70778137,216.67,216.6,42.86638137]
[1731328170491,26.70778137,216.67,216.6,11.542]
[1731328170691,26.70778137,216.65,216.6,11.542]
[1731328171093,26.70778137,216.66,216.6,11.542]
[1731328171911,4.6154,216.67,216.6,42.86658137]
[1731328172119,31.32318137,216.67,216.6,16.1588]
[1731328172296,26.70778137,216.67,216.6,42.86658137]
[1731328172501,31.32298137,216.68,216.61,26.70778137]
[1731328172801,31.32298137,216.68,216.6,42.86658137]
[1731328173394,31.32298137,216.68,216.61,26.70778137]
[1731328173710,15.4996,216.75,216.61,26.70778137]
[1731328173711,26.70778137,216.72,216.65,26.70778137]
[1731328174211,26.70778137,216.7,216.63,26.70778137]
[1731328174914,26.70778137,216.66,216.61,11.5414]
[1731328175609,26.70778137,216.68,216.61,38.24918137]
[1731328175796,26.70778137,216.69,216.61,38.24918137]
[1731328176195,26.70778137,216.7,216.63,26.70778137]
[1731328176399,26.70778137,216.64,216.58,33.10858137]
[1731328176920,26.70778137,216.64,216.58,37.72568137]
[1731328177314,23.776884,216.72,216.63,26.70778137]
[1731328177501,23.776884,216.74,216.68,26.70778137]
[1731328177706,23.776884,216.74,216.63,11.5399]
[1731328177707,50.48466537,216.74,216.66,26.70778137]
[1731328178015,23.776884,216.74,216.68,26.70778137]
[1731328178313,31.32148137,216.75,216.67,26.70778137]
[1731328178495,26.70778137,216.74,216.67,26.70778137]
[1731328178898,4.614,216.73,216.67,26.70778137]
[1731328180914,4.614,216.73,216.65,26.70778137]
[1731328181095,26.70778137,216.76,216.67,26.70778137]
[1731328181295,26.70778137,216.76,216.69,26.70778137]
[1731328181513,4.6127,216.79,216.7,26.70778137]
[1731328181514,26.70778137,216.78,216.7,26.70778137]
[1731328181714,31.32048137,216.79,216.71,26.70778137]
[1731328181920,26.70778137,216.77,216.69,26.70778137]
[1731328182121,4.6127,216.79,216.69,26.70778137]
[1731328182321,26.70778137,216.78,216.69,26.70778137]
[1731328182615,4.6131,216.77,216.71,26.70778137]
[1731328183812,4.6131,216.77,216.71,31.32218137]
[1731328184114,4.6131,216.77,216.72,6.3012]
[1731328186019,4.6131,216.77,216.71,31.32218137]
[1731328186626,26.70778137,216.79,216.71,31.32218137]
[1731328186803,16.7106406,216.79,216.71,21.3250406]
[1731328187502,21.3225406,216.83,216.75,16.7106406]
[1731328187705,23.776884,216.82,216.75,16.7106406]
[1731328188309,23.776884,216.82,216.71,16.1505]
[1731328188310,16.7106406,216.81,216.73,16.7106406]
[1731328188930,4.6125,216.8,216.73,21.3245406]
[1731328189710,23.776884,216.82,216.73,21.3245406]
[1731328189711,4.611,216.87,216.79,16.7106406]
[1731328190129,16.7106406,216.84,216.75,16.7106406]
[1731328191005,21.3223406,216.84,216.76,4.6133]
[1731328192009,16.7106406,216.8,216.73,11.535]
[1731328192423,23.776884,216.83,216.69,22.1532]
[1731328192424,16.7106406,216.77,216.69,22.1532]
[1731328192605,16.7106406,216.75,216.69,22.1532]
[1731328192807,26.74358064,216.76,216.69,22.1532]
[1731328193930,4.6132,216.77,216.7,26.74358064]
[1731328194308,4.6132,216.77,216.7,31.35818064]
[1731328194627,4.6132,216.77,216.7,26.74358064]
[1731328195833,4.6132,216.77,216.7,31.35808064]
[1731328196239,26.74358064,216.8,216.72,26.74358064]
[1731328196441,4.6124,216.81,216.74,26.74358064]
[1731328197125,26.74358064,216.82,216.74,26.74358064]
[1731328197325,31.35568064,216.82,216.74,26.74358064]
[1731328198633,31.35568064,216.82,216.74,42.89178064]
[1731328198838,26.74358064,216.8,216.74,11.5345]
[1731328199033,26.74358064,216.78,216.7,26.74358064]
[1731328199331,26.74358064,216.76,216.69,22.1531]
[1731328200131,4.6136,216.75,216.69,22.1531]
[1731328200335,4.6136,216.75,216.69,17.5384]
[1731328200821,31.35698064,216.76,216.69,22.1532]
[1731328201733,26.74358064,216.72,216.65,11.539]
[1731328201955,4.6134,216.76,216.59,16.3113]
[1731328201956,26.74358064,216.71,216.61,11.5413]
[1731328202114,4.6153,216.67,216.61,11.5413]
[1731328202312,4.6153,216.67,216.6,26.74358064]
[1731328202313,31.35888064,216.67,216.6,26.74358064]
[1731328202815,20.0,216.6,216.49,4.619]
[1731328203017,20.0,216.6,216.44,15.0841]
[1731328203018,26.74358064,216.51,216.46,6.2399]
[1731328203323,26.74358064,216.51,216.43,4.6202]
[1731328204112,26.74358064,216.51,216.42,38.29508064]
[1731328204433,70.52046464,216.51,216.4,6.2399]
[1731328204662,100.52046464,216.51,216.4,6.2399]
[1731328205133,80.52046464,216.51,216.4,6.2399]
[1731328205322,80.52046464,216.51,216.4,37.60438064]
[1731328205634,127.46404528,216.51,216.34,37.63108064]
[1731328205935,100.62046464,216.51,216.36,26.74358064]
[1731328206135,76.74358064,216.51,216.41,31.36428064]
[1731328206515,56.74358064,216.51,216.43,26.74358064]
[1731328206712,30.0,216.51,216.47,26.74358064]
[1731328207135,26.74358064,216.55,216.47,26.74358064]
[1731328207310,26.74358064,216.53,216.45,26.74358064]
[1731328207633,26.74358064,216.51,216.44,4.6201]
[1731328207836,26.74358064,216.51,216.41,38.29568064]
[1731328208035,26.74358064,216.51,216.41,11.5521]
[1731328208330,26.74358064,216.51,216.41,16.1728]
[1731328208633,31.36228064,216.51,216.41,38.29568064]
[1731328209217,31.36228064,216.51,216.41,11.5521]
[1731328209218,61.36228064,216.51,216.41,11.5521]
[1731328210724,61.36228064,216.51,216.41,38.29568064]
[1731328210927,31.36178064,216.54,216.45,26.74358064]
[1731328211129,26.74358064,216.53,216.46,26.74358064]
[1731328211716,26.74358064,216.53,216.45,26.74358064]
[1731328211928,26.74358064,216.51,216.42,4.6205]
[1731328212415,26.74358064,216.51,216.43,26.74358064]
[1731328212747,26.74358064,216.51,216.37,4.6215]
[1731328212748,51.36228064,216.51,216.37,4.6215]
[1731328212915,51.36228064,216.51,216.37,31.36508064]
[1731328213239,51.46228064,216.51,216.36,16.1763]
[1731328213445,105.23916464,216.51,216.36,38.29808064]
[1731328213639,81.36228064,216.51,216.4,31.36448064]
[1731328213929,61.36228064,216.51,216.42,26.74358064]
[1731328214132,61.36228064,216.51,216.43,26.74358064]
[1731328214629,56.74358064,216.51,216.45,26.74358064]
[1731328214836,30.0,216.51,216.45,26.74358064]
[1731328215022,30.0,216.51,216.44,4.6201]
[1731328215023,30.0,216.51,216.48,4.6192]
[1731328215224,0.1,216.64,216.48,4.6192]
[1731328215225,31.36068064,216.59,216.49,26.74358064]
[1731328215420,31.36068064,216.59,216.52,26.74358064]
[1731328215628,31.36068064,216.59,216.48,6.3749]
[1731328215836,31.36068064,216.59,216.5,27.74358064]
[1731328216033,31.36068064,216.59,216.5,32.36238064]
[1731328216231,31.36068064,216.59,216.5,5.6188]
[1731328216432,31.36068064,216.59,216.51,26.74358064]
[1731328216636,4.614,216.73,216.65,159.3]
[1731328216932,30.0,216.66,216.62,26.74358064]
[1731328217720,26.74358064,216.71,216.62,26.74358064]
[1731328217917,26.74358064,216.69,216.6,26.74358064]
[1731328218125,26.74358064,216.71,216.63,26.74358064]
[1731328218331,26.74358064,216.73,216.63,26.74358064]
[1731328218528,26.74358064,216.71,216.61,26.74358064]
[1731328218940,26.74358064,216.69,216.61,26.74358064]
[1731328219122,26.74358064,216.67,216.58,11.543]
[1731328219325,26.84358064,216.72,216.5,24.1946]
[1731328219326,26.74358064,216.63,216.55,26.74358064]
[1731328219537,26.74358064,216.61,216.53,42.90728064]
[1731328219739,26.74358064,216.63,216.56,26.74358064]
[1731328220048,31.35888064,216.67,216.58,26.74358064]
[1731328220243,31.35888064,216.67,216.6,26.74358064]
[1731328221246,26.74358064,216.64,216.56,31.36108064]
[1731328221536,4.6153,216.67,216.54,11.5452]
[1731328221537,26.74358064,216.62,216.54,26.74358064]
[1731328222442,26.74358064,216.62,216.51,23.776884]
[1731328222623,26.74358064,216.6,216.53,4.6182]
[1731328222942,26.74358064,216.64,216.56,26.74358064]
[1731328223147,4.6155,216.66,216.6,26.74358064]
[1731328223441,31.35878064,216.68,216.6,26.74358064]
[1731328224035,26.74358064,216.64,216.56,26.74358064]
[1731328224618,4.6161,216.63,216.56,26.74358064]
[1731328225028,4.6161,216.63,216.58,26.74358064]
[1731328225232,4.6158,216.65,216.58,26.74358064]
[1731328225832,26.74358064,216.66,216.59,23.776884]
[1731328226038,4.6154,216.67,216.6,26.74358064]
[1731328226929,26.74358064,216.68,216.6,31.36028064]
[1731328227134,4.615,216.69,216.62,26.74358064]
[1731328227747,26.74358064,216.68,216.59,23.776884]
[1731328228042,26.74358064,216.68,216.6,11.542]
[1731328228247,26.74358064,216.68,216.61,26.74358064]
[1731328228739,26.74358064,216.68,216.62,23.776884]
[1731328228924,15.4107,216.75,216.62,23.776884]
[1731328228925,26.74358064,216.74,216.67,26.74358064]
[1731328229123,17.8339,216.83,216.64,11.5398]
[1731328229124,26.74358064,216.78,216.69,26.74358064]
[1731328229443,26.74358064,216.78,216.71,26.74358064]
[1731328230331,26.74358064,216.8,216.72,16.1498]
[1731328230953,31.35628064,216.8,216.72,11.5356]
[1731328231160,26.74358064,216.78,216.71,26.74358064]
[1731328231454,4.6127,216.8,216.67,11.5379]
[1731328231455,26.74358064,216.74,216.68,23.776884]
[1731328231652,4.6127,216.8,216.77,132.55641936]
[1731328231828,26.74358064,216.78,216.65,26.74358064]
[1731328232035,26.74358064,216.74,216.67,26.74358064]
[1731328232453,26.74358064,216.78,216.71,26.74358064]
[1731328232651,11.5291,216.85,216.73,26.74358064]
[1731328232652,26.74358064,216.8,216.73,26.74358064]
[1731328232946,26.74358064,216.81,216.73,26.74358064]
[1731328234142,4.6125,216.8,216.73,26.74358064]
[1731328234551,15.9559,216.89,216.73,26.74358064]
[1731328234552,26.74358064,216.87,216.79,26.74358064]
[1731328234748,26.74358064,216.87,216.74,23.776884]
[1731328234749,26.74358064,216.89,216.81,26.74358064]
[1731328235349,4.6108,216.88,216.81,26.74358064]
[1731328235964,26.74358064,216.87,216.81,26.74358064]
[1731328236137,26.74358064,216.87,216.79,26.74358064]
[1731328236451,4.6108,216.88,216.83,26.74358064]
[1731328237060,50.5142,216.95,216.77,16.1459]
[1731328237061,26.74358064,216.95,216.93,159.3]
[1731328237353,26.74358064,216.95,216.87,26.74358064]
[1731328238054,4.6095,216.94,216.87,26.74358064]
[1731328238262,26.74358064,216.93,216.85,26.74358064]
[1731328238555,26.74358064,216.91,216.83,26.74358064]
[1731328239136,26.74358064,216.89,216.81,26.74358064]
[1731328240565,26.74358064,216.87,216.79,50.52046464]
[1731328240743,26.74358064,216.85,216.78,11.5324]
[1731328240944,26.74358064,216.85,216.77,26.74358064]
[1731328241156,26.74358064,216.83,216.75,31.35708064]
[1731328241862,20.0,216.94,216.81,26.74358064]
[1731328242038,26.74358064,216.89,216.81,26.74358064]
[1731328242434,26.74358064,216.87,216.79,26.74358064]
[1731328242640,26.74358064,216.81,216.73,26.74358064]
[1731328243857,26.74358064,216.81,216.73,31.35748064]
[1731328245065,26.74358064,216.79,216.73,4.6139]
[1731328245357,26.74358064,216.77,216.69,31.35828064]
[1731328245949,26.74358064,216.77,216.69,42.89548064]
[1731328247161,26.74358064,216.77,216.6,26.84358064]
[1731328247162,26.74358064,216.71,216.64,16.1553]
[1731328247968,31.35818064,216.71,216.64,11.5394]
[1731328248257,26.74358064,216.77,216.69,26.74358064]
[1731328248463,26.74358064,216.81,216.73,26.74358064]
[1731328249542,42.72468064,216.83,216.75,26.74358064]
[1731328249840,26.74358064,216.83,216.75,26.74358064]
[1731328250041,26.74358064,216.83,216.67,16.1535]
[1731328250042,26.74358064,216.86,216.77,26.74358064]
[1731328250240,26.74358064,216.86,216.79,26.74358064]
[1731328250437,26.74358064,216.82,216.75,50.52046464]
[1731328250644,26.74358064,216.82,216.75,26.74358064]
[1731328251263,26.74358064,216.84,216.75,26.74358064]
[1731328251659,26.74358064,216.84,216.77,26.74358064]
[1731328251660,4.6119,216.83,216.77,26.74358064]
[1731328253349,4.6111,216.87,216.81,26.74358064]
[1731328253860,26.74358064,216.88,216.8,23.776884]
[1731328254063,26.74358064,216.88,216.81,26.74358064]
[1731328254241,26.74358064,216.9,216.81,26.74358064]
[1731328254444,26.74358064,216.92,216.85,26.74358064]
[1731328254755,4.6093,216.96,216.85,26.74358064]
[1731328254960,26.74358064,216.97,216.89,26.74358064]
[1731328255461,26.74358064,216.95,216.87,26.74358064]
[1731328256172,26.74358064,216.97,216.87,26.74358064]
[1731328256357,26.74358064,216.97,216.89,26.74358064]
[1731328256755,26.74358064,216.99,216.91,26.74358064]
[1731328257546,41.91818064,217.03,216.95,26.74358064]
[1731328258055,26.74358064,217.01,216.92,26.74358064]
[1731328258248,26.74358064,217.01,216.94,26.74358064]
[1731328258467,41.91818064,217.03,216.94,26.74358064]
[1731328258655,41.91818064,217.03,216.96,26.74358064]
[1731328259467,26.74358064,217.05,216.98,26.74358064]
[1731328259767,26.74358064,217.05,216.93,4.6097]
[1731328259768,26.74358064,217.09,217.0,26.74358064]
[1731328259966,26.74358064,217.09,217.02,26.74358064]
[1731328260159,16.2293,217.1,217.02,26.74358064]
[1731328260555,16.2293,217.1,217.04,26.74358064]
[1731328260887,11.5114,217.18,216.97,6.535]
[1731328260888,4.6034,217.23,217.09,26.74358064]
[1731328261173,4.6034,217.23,216.96,26.74358064]
[1731328261174,0.1,217.32,217.18,26.74358064]
[1731328261346,26.74358064,217.27,217.13,16.1189]
[1731328261548,4.6019,217.3,217.18,26.74358064]
[1731328261765,26.74358064,217.25,217.18,26.74358064]
[1731328262166,26.74358064,217.27,217.18,26.74358064]
[1731328262360,26.74358064,217.26,217.18,26.74358064]
[1731328262669,26.74358064,217.22,217.14,26.74358064]
[1731328262875,26.74358064,217.2,217.14,26.74358064]
[1731328263264,26.74358064,217.22,217.14,26.74358064]
[1731328264172,26.74358064,217.28,217.2,26.74358064]
[1731328264365,4.6017,217.31,217.2,26.74358064]
[1731328264551,26.74358064,217.28,217.2,26.74358064]
[1731328264974,26.74358064,217.26,217.18,31.34788064]
[1731328265854,31.34598064,217.28,217.2,26.74358064]
[1731328266564,26.74358064,217.26,217.2,26.74358064]
[1731328266767,31.34598064,217.28,217.2,26.74358064]
[1731328267080,26.74358064,217.3,217.23,26.74358064]
[1731328267259,31.34518064,217.32,217.25,26.74358064]
[1731328267986,41.80878064,217.34,217.26,26.74358064]
[1731328268167,31.34468064,217.34,217.26,26.74358064]
[1731328268354,26.74358064,217.32,217.24,26.74358064]
[1731328268776,26.74358064,217.3,217.22,26.74358064]
[1731328269278,26.74358064,217.32,217.25,26.74358064]
[1731328270079,26.74358064,217.3,217.23,26.74358064]
[1731328270480,0.1,217.43,217.29,26.74358064]
[1731328270685,26.74358064,217.4,217.33,26.74358064]
[1731328270975,26.74358064,217.35,217.28,26.74358064]
[1731328271185,26.74358064,217.36,217.28,26.74358064]
[1731328271392,4.6004,217.37,217.3,26.74358064]
[1731328271966,26.74358064,217.36,217.28,26.74358064]
[1731328272169,26.74358064,217.33,217.25,26.74358064]
[1731328272369,9.74627068,217.32,217.25,26.74358064]
[1731328272575,31.34398064,217.37,217.29,26.74358064]
[1731328272762,31.34368064,217.39,217.31,26.74358064]
[1731328273185,26.74358064,217.39,217.32,16.1052]
[1731328273365,26.74358064,217.41,217.33,26.74358064]
[1731328273557,26.74358064,217.41,217.35,26.74358064]
[1731328273783,21.008,217.42,217.35,26.74358064]
[1731328273966,4.5991,217.44,217.37,26.74358064]
[1731328274165,26.74358064,217.45,217.37,26.74358064]
[1731328274483,4.5986,217.46,217.39,26.74358064]
[1731328274779,4.5986,217.46,217.33,23.776884]
[1731328274780,26.74358064,217.51,217.43,26.74358064]
[1731328275083,31.34238064,217.45,217.3,11.5048]
[1731328275274,26.74358064,217.38,217.3,38.24838064]
[1731328275473,26.74358064,217.42,217.32,26.74358064]
[1731328275867,26.74358064,217.42,217.34,26.74358064]
[1731328276069,26.74358064,217.4,217.3,11.5048]
[1731328276279,26.74358064,217.38,217.3,38.24838064]
[1731328276579,26.74358064,217.41,217.34,26.74358064]
[1731328276764,26.74358064,217.43,217.34,26.74358064]
[1731328276962,20.1,217.49,217.3,11.5048]
[1731328277167,26.74358064,217.41,217.32,26.74358064]
[1731328277384,26.74358064,217.39,217.32,26.74358064]
[1731328277584,20.0,217.47,217.36,26.74358064]
[1731328277760,26.74358064,217.45,217.36,26.74358064]
[1731328278262,4.5981,217.48,217.4,26.74358064]
[1731328278263,26.74358064,217.47,217.4,26.74358064]
[1731328278463,26.74358064,217.47,217.32,26.74358064]
[1731328278464,4.5981,217.48,217.42,26.74358064]
[1731328278997,11.4903,217.58,217.46,26.74358064]
[1731328279289,26.74358064,217.55,217.46,26.74358064]
[1731328279488,25.74358064,217.55,217.44,4.5988]
[1731328279675,26.74358064,217.53,217.45,26.74358064]
[1731328279873,26.74358064,217.51,217.43,26.74358064]
[1731328280081,26.74358064,217.49,217.41,26.74358064]
[1731328280269,26.74358064,217.49,217.4,6.5788]
[1731328280467,26.74358064,217.45,217.37,26.74358064]
[1731328280680,26.74358064,217.47,217.39,26.74358064]
[1731328281080,4.5962,217.57,217.45,26.74358064]
[1731328281081,26.74358064,217.52,217.45,26.74358064]
[1731328281270,4.5962,217.57,217.45,26.74358064]
[1731328281271,26.74358064,217.54,217.45,26.74358064]
[1731328281974,26.74358064,217.56,217.47,26.74358064]
[1731328282689,26.74358064,217.59,217.5,26.74358064]
[1731328282882,4.5951,217.62,217.52,26.74358064]
[1731328283088,26.74358064,217.63,217.56,26.74358064]
[1731328283389,26.74358064,217.57,217.49,26.74358064]
[1731328283969,4.5948,217.64,217.5,23.776884]
[1731328284194,26.74358064,217.62,217.54,26.74358064]
[1731328284570,26.74358064,217.6,217.52,26.74358064]
[1731328285288,26.74358064,217.62,217.54,26.74358064]
[1731328285496,26.74358064,217.62,217.52,26.74358064]
[1731328285667,26.74358064,217.6,217.52,26.74358064]
[1731328286001,26.74358064,217.58,217.5,26.74358064]
[1731328286176,26.74358064,217.54,217.46,42.83838064]
[1731328286688,26.74358064,217.52,217.46,16.0948]
[1731328287289,26.74358064,217.48,217.41,17.9257]
[1731328287468,26.74358064,217.48,217.42,4.5993]
[1731328288081,26.74358064,217.46,217.38,26.74358064]
[1731328288272,26.74358064,217.46,217.39,4.6]
[1731328288581,26.74358064,217.42,217.36,18.0965]
[1731328288787,20.0,217.5,217.38,26.74358064]
[1731328288989,26.74358064,217.49,217.4,26.74358064]
[1731328289293,26.74358064,217.43,217.36,44.84028064]
[1731328289799,26.74358064,217.43,217.36,18.0967]
[1731328290096,26.74358064,217.43,217.36,11.5016]
[1731328290291,26.74358064,217.47,217.4,26.74358064]
[1731328290497,26.74358064,217.43,217.36,38.24518064]
[1731328290997,26.74358064,217.41,217.32,33.33868064]
[1731328291180,26.74358064,217.37,217.28,31.34588064]
[1731328291382,26.84358064,217.44,217.28,31.34588064]
[1731328291383,26.74358064,217.35,217.28,31.34588064]
[1731328291580,26.74358064,217.37,217.28,42.85168064]
[1731328292395,31.34398064,217.37,217.28,42.85168064]
[1731328292598,26.74358064,217.31,217.26,6.1776]
[1731328292796,26.74358064,217.31,217.23,11.5084]
[1731328293007,26.74358064,217.29,217.21,10.7813]
[1731328293180,26.74358064,217.27,217.21,6.1776]
[1731328293381,26.74358064,217.32,217.18,11.5109]
[1731328293382,26.74358064,217.25,217.18,11.5109]
[1731328293599,26.74358064,217.23,217.15,6.3421]
[1731328294088,15.7674,217.29,217.18,26.74358064]
[1731328294288,26.74358064,217.32,217.24,26.74358064]
[1731328294487,31.34518064,217.32,217.24,38.25108064]
[1731328294803,26.74358064,217.26,217.19,11.5105]
[1731328294979,26.74358064,217.28,217.2,26.74358064]
[1731328295183,26.74358064,217.3,217.22,26.74358064]
[1731328295582,26.74358064,217.3,217.19,11.5105]
[1731328295583,26.74358064,217.3,217.2,26.74358064]
[1731328295902,26.74358064,217.28,217.2,26.74358064]
[1731328296107,26.74358064,217.24,217.15,6.3421]
[1731328296275,26.74358064,217.22,217.15,6.3421]
[1731328296593,26.74358064,217.29,217.2,26.74358064]
[1731328296798,26.74358064,217.29,217.15,22.5598]
[1731328296799,26.74358064,217.31,217.22,26.74358064]
[1731328296984,26.74358064,217.31,217.24,26.74358064]
[1731328297310,26.74358064,217.33,217.25,23.776884]
[1731328298380,26.74358064,217.33,217.25,28.379784]
[1731328298789,15.3948,217.35,217.23,16.1115]
[1731328298997,16.637,217.44,217.3,26.74358064]
[1731328299300,0.1,217.47,217.34,26.74358064]
[1731328299301,4.5983,217.47,217.34,26.74358064]
[1731328299505,26.74358064,217.41,217.32,26.74358064]
[1731328299705,26.74358064,217.41,217.33,23.776884]
[1731328299995,4.5983,217.47,217.25,6.3549]
[1731328299996,26.74358064,217.39,217.31,23.776884]
[1731328300388,31.34398064,217.37,217.28,26.74358064]
[1731328300695,26.74358064,217.35,217.27,16.1083]
[1731328301906,26.74358064,217.37,217.28,26.74358064]
[1731328302787,26.74358064,217.35,217.26,50.52046464]
[1731328303184,26.74358064,217.39,217.3,26.74358064]
[1731328303400,26.74358064,217.42,217.34,26.74358064]
[1731328303683,26.74358064,217.44,217.35,23.776884]
[1731328303891,26.74358064,217.42,217.35,23.776884]
[1731328304298,15.3929,217.47,217.25,6.3549]
[1731328304299,26.74358064,217.4,217.31,26.74358064]
[1731328304512,26.74358064,217.4,217.32,23.776884]
[1731328305108,26.74358064,217.4,217.25,6.3549]
[1731328305109,26.74358064,217.34,217.25,6.3549]
[1731328305296,26.74358064,217.32,217.25,6.3549]
[1731328305989,26.74358064,217.32,217.25,33.09848064]
[1731328306381,26.74358064,217.34,217.27,26.74358064]
[1731328306585,26.74358064,217.36,217.27,26.74358064]
[1731328307309,26.74358064,217.38,217.3,23.776884]
[1731328307688,26.74358064,217.38,217.31,26.74358064]
[1731328308412,26.74358064,217.4,217.33,26.74358064]
[1731328308584,26.74358064,217.42,217.33,26.74358064]
[1731328308788,26.74358064,217.42,217.34,23.776884]
[1731328308987,26.74358064,217.44,217.35,26.74358064]
[1731328309215,26.74358064,217.46,217.38,23.776884]
[1731328310694,26.74358064,217.46,217.37,26.74358064]
[1731328310892,26.74358064,217.46,217.38,23.776884]
[1731328311101,23.2122,217.52,217.38,23.776884]
[1731328311102,26.74358064,217.44,217.38,23.776884]
[1731328311290,26.74358064,217.44,217.37,26.74358064]
[1731328311492,26.74358064,217.46,217.38,23.776884]
[1731328312518,26.74358064,217.48,217.39,26.74358064]
[1731328312694,26.74358064,217.54,217.45,26.74358064]
[1731328312889,26.74358064,217.52,217.45,26.74358064]
[1731328313092,26.74358064,217.52,217.44,23.776884]
[1731328314196,26.74358064,217.5,217.44,23.776884]
[1731328314512,26.74358064,217.46,217.39,26.74358064]
[1731328314917,26.74358064,217.48,217.39,26.74358064]
[1731328315715,26.74358064,217.46,217.4,23.776884]
[1731328315919,26.74358064,217.5,217.41,26.74358064]
[1731328316127,26.74358064,217.48,217.41,26.74358064]
[1731328316328,26.74358064,217.48,217.39,50.52046464]
[1731328316498,26.74358064,217.45,217.39,23.776884]
[1731328317201,0.2,217.55,217.39,23.776884]
[1731328317202,20.2,217.55,217.39,23.776884]
[1731328317418,26.74358064,217.47,217.39,23.776884]
[1731328317912,15.4929,217.58,217.44,26.74358064]
[1731328318117,26.74358064,217.54,217.45,23.776884]
[1731328318499,26.74358064,217.52,217.45,23.776884]
[1731328319416,26.74358064,217.48,217.4,26.74358064]
[1731328320415,0.1,217.55,217.38,6.4154]
[1731328320416,20.0,217.57,217.38,6.4154]
[1731328320623,15.4929,217.58,217.38,6.4154]
[1731328320624,15.4929,217.58,217.47,26.74358064]
[1731328320834,42.23648064,217.58,217.49,26.74358064]
[1731328321122,26.74358064,217.56,217.47,26.74358064]
[1731328321302,42.23648064,217.58,217.49,26.74358064]
[1731328321500,6.0676,217.62,217.5,23.776884]
[1731328321694,26.74358064,217.58,217.5,23.776884]
[1731328321898,26.74358064,217.6,217.52,23.776884]
[1731328323101,26.74358064,217.6,217.54,23.776884]
[1731328323306,26.74358064,217.62,217.54,23.776884]
[1731328323526,6.5391,217.69,217.56,23.776884]
[1731328323720,26.74358064,217.64,217.56,23.776884]
[1731328324125,26.74358064,217.57,217.43,6.3793]
[1731328324319,26.74358064,217.55,217.46,26.74358064]
[1731328324622,26.74358064,217.6,217.5,26.74358064]
[1731328325122,26.74358064,217.58,217.48,26.74358064]
[1731328325425,46.84358064,217.68,217.43,6.3793]
[1731328325426,26.74358064,217.54,217.47,23.776884]
[1731328325716,26.74358064,217.53,217.43,33.12288064]
[1731328326105,26.74358064,217.49,217.43,6.3793]
[1731328326512,26.74358064,217.51,217.43,6.3793]
[1731328327307,26.74358064,217.49,217.43,6.3793]
[1731328327819,26.74358064,217.49,217.44,23.776884]
[1731328328297,16.4904,217.58,217.44,23.776884]
[1731328328499,26.74358064,217.49,217.43,6.3793]
[1731328329109,26.74358064,217.56,217.43,6.3793]
[1731328329110,26.74358064,217.47,217.43,6.3793]
[1731328329418,26.74358064,217.45,217.37,26.74358064]
[1731328329618,26.74358064,217.45,217.36,6.4907]
[1731328330027,26.74358064,217.43,217.36,6.4907]
[1731328330619,26.74358064,217.41,217.36,6.4907]
[1731328330814,26.74358064,217.39,217.31,33.01268064]
[1731328331217,26.74358064,217.39,217.31,6.2691]
[1731328331459,26.74358064,217.35,217.27,26.74358064]
[1731328331619,16.1629,217.45,217.34,26.74358064]
[1731328331834,26.74358064,217.42,217.34,26.74358064]
[1731328332327,26.74358064,217.38,217.3,36.74358064]
[1731328332509,26.74358064,217.36,217.3,10.0]
[1731328332904,26.74358064,217.44,217.32,26.74358064]
[1731328332905,26.74358064,217.4,217.32,26.74358064]
[1731328333112,26.74358064,217.4,217.3,10.0]
[1731328333113,26.74358064,217.36,217.3,21.5048]
[1731328333335,26.74358064,217.36,217.3,10.0]
[1731328333808,26.74358064,217.32,217.3,10.0]
[1731328334230,0.1,217.42,217.3,10.0]
[1731328334419,26.74358064,217.34,217.3,10.0]
[1731328334809,26.74358064,217.37,217.31,4.6017]
[1731328335033,4.5991,217.43,217.3,36.74358064]
[1731328335034,26.74358064,217.35,217.3,10.0]